[Event "Titled Tuesday Blitz March 28 Early 2023"]
[White "Matinian, Nikita"]
[Black "Abdilkhair, Abilmansur"]
[WhiteFideId "24129100"]
[BlackFideId "13716417"]
[WhiteElo "2422"]
[BlackElo "2216"]
[Result "1-0"]
[Round "03"]
[TimeControl "180+2"]
[Date "2023.03.28"]
[WhiteClock "0:00:20"]
[BlackClock "0:00:03"]

1. e4 {[%clk 0:02:40]}  e5 {[%clk 0:02:59]} 2. Nf3 {[%clk 0:02:40]}  Nc6 {[%clk 0:02:59]} 3. Bb5 {[%clk 0:02:38]}  a6 {[%clk 0:03:00]} 4. Ba4 {[%clk 0:02:37]}  Nf6 {[%clk 0:03:00]} 5. O-O {[%clk 0:02:38]}  b5 {[%clk 0:03:00]} 6. Bb3 {[%clk 0:02:38]}  Be7 {[%clk 0:03:01]} 7. d3 {[%clk 0:02:36]}  d6 {[%clk 0:03:01]} 8. a3 {[%clk 0:02:36]}  O-O {[%clk 0:03:00]} 9. Nc3 {[%clk 0:02:36]}  Bg4 {[%clk 0:02:52]} 10. Be3 {[%clk 0:02:35]}  Na5 {[%clk 0:02:46]} 11. Ba2 {[%clk 0:02:34]}  c5 {[%clk 0:02:47]} 12. h3 {[%clk 0:02:33]}  Be6 {[%clk 0:02:45]} 13. Nd5 {[%clk 0:02:33]}  Bxd5 {[%clk 0:02:42]} 14. exd5 {[%clk 0:02:33]}  Nb7 {[%clk 0:02:27]} 15. b4 {[%clk 0:02:30]}  a5 {[%clk 0:02:26]} 16. bxc5 {[%clk 0:02:30]}  Nxc5 {[%clk 0:02:23]} 17. Bxc5 {[%clk 0:02:30]}  dxc5 {[%clk 0:02:24]} 18. Nxe5 {[%clk 0:02:30]}  Re8 {[%clk 0:01:37]} 19. Nc6 {[%clk 0:02:28]}  Qd6 {[%clk 0:01:35]} 20. Qf3 {[%clk 0:02:28]}  Nd7 {[%clk 0:01:28]} 21. Rab1 {[%clk 0:02:23]}  b4 {[%clk 0:01:22]} 22. axb4 {[%clk 0:02:23]}  axb4 {[%clk 0:01:23]} 23. Bc4 {[%clk 0:02:21]}  Bf6 {[%clk 0:01:21]} 24. Rfe1 {[%clk 0:02:20]}  Bc3 {[%clk 0:01:18]} 25. Re3 {[%clk 0:02:15]}  Ne5 {[%clk 0:01:08]} 26. Nxe5 {[%clk 0:01:57]}  Rxe5 {[%clk 0:01:08]} 27. Rxe5 {[%clk 0:01:57]}  Bxe5 {[%clk 0:01:09]} 28. g3 {[%clk 0:01:58]}  g6 {[%clk 0:01:06]} 29. Kg2 {[%clk 0:01:58]}  Ra1 {[%clk 0:01:02]} 30. Rxa1 {[%clk 0:01:57]}  Bxa1 {[%clk 0:01:03]} 31. h4 {[%clk 0:01:57]}  h5 {[%clk 0:01:02]} 32. Bb5 {[%clk 0:01:50]}  Kg7 {[%clk 0:00:58]} 33. Qe4 {[%clk 0:01:44]}  Bd4 {[%clk 0:00:57]} 34. f4 {[%clk 0:01:43]}  Qc7 {[%clk 0:00:42]} 35. Bc4 {[%clk 0:01:28]}  Qd6 {[%clk 0:00:41]} 36. Qe8 {[%clk 0:01:21]}  Bf6 {[%clk 0:00:30]} 37. Qe2 {[%clk 0:00:48]}  Bd4 {[%clk 0:00:30]} 38. Qe4 {[%clk 0:00:43]}  Bf6 {[%clk 0:00:29]} 39. Qe8 {[%clk 0:00:38]}  Be7 {[%clk 0:00:27]} 40. Qc6 {[%clk 0:00:37]}  Kg8 {[%clk 0:00:21]} 41. Kf3 {[%clk 0:00:37]}  Kg7 {[%clk 0:00:21]} 42. Ba6 {[%clk 0:00:33]}  Bf8 {[%clk 0:00:16]} 43. Kf2 {[%clk 0:00:20]}  Kg8 {[%clk 0:00:16]} 44. Bc8 {[%clk 0:00:19]}  Kg7 {[%clk 0:00:15]} 45. Bh3 {[%clk 0:00:17]}  Qf6 {[%clk 0:00:15]} 46. Qxf6+ {[%clk 0:00:13]}  Kxf6 {[%clk 0:00:15]} 47. Bd7 {[%clk 0:00:14]}  Bd6 {[%clk 0:00:16]} 48. Kf3 {[%clk 0:00:14]}  Ke7 {[%clk 0:00:15]} 49. Bb5 {[%clk 0:00:14]}  Kf6 {[%clk 0:00:15]} 50. Ke4 {[%clk 0:00:14]}  Ke7 {[%clk 0:00:16]} 51. d4 {[%clk 0:00:14]}  f5+ {[%clk 0:00:13]} 52. Kd3 {[%clk 0:00:14]}  Kf7 {[%clk 0:00:06]} 53. Bd7 {[%clk 0:00:14]}  Ke7 {[%clk 0:00:05]} 54. Bc8 {[%clk 0:00:14]}  Kd8 {[%clk 0:00:05]} 55. Be6 {[%clk 0:00:13]}  Ke7 {[%clk 0:00:05]} 56. Kc4 {[%clk 0:00:14]}  cxd4 {[%clk 0:00:05]} 57. Kxd4 {[%clk 0:00:15]}  Kf6 {[%clk 0:00:04]} 58. Kc4 {[%clk 0:00:15]}  Ke7 {[%clk 0:00:04]} 59. Kb5 {[%clk 0:00:15]}  Kf6 {[%clk 0:00:05]} 60. Kc6 {[%clk 0:00:16]}  Ke7 {[%clk 0:00:05]} 61. Bf7 {[%clk 0:00:17]}  Bxf4 {[%clk 0:00:02]} 62. gxf4 {[%clk 0:00:16]}  Kxf7 {[%clk 0:00:03]} 63. d6 {[%clk 0:00:17]}  Ke8 {[%clk 0:00:03]} 64. Kc7 {[%clk 0:00:17]}  b3 {[%clk 0:00:01]} 65. d7+ {[%clk 0:00:18]}  Kf7 {[%clk 0:00:02]} 66. cxb3 {[%clk 0:00:18]}  g5 {[%clk 0:00:02]} 67. fxg5 {[%clk 0:00:18]}  f4 {[%clk 0:00:03]} 68. d8=Q {[%clk 0:00:19]}  f3 {[%clk 0:00:03]} 69. Qf6+ {[%clk 0:00:20]} 1-0


[Site "https://www.chess.com"]

[Event "Titled Tuesday Blitz March 28 Early 2023"]
[White "Deng, Henry"]
[Black "Prohaszka, Peter"]
[WhiteFideId "30965454"]
[BlackFideId "726265"]
[WhiteElo "2463"]
[BlackElo "2626"]
[Result "0-1"]
[Round "03"]
[TimeControl "180+2"]
[Date "2023.03.28"]
[WhiteClock "0:00:07"]
[BlackClock "0:00:18"]

1. e4 {[%clk 0:03:00]}  c6 {[%clk 0:02:57]} 2. d4 {[%clk 0:03:00]}  d5 {[%clk 0:02:58]} 3. Nd2 {[%clk 0:03:00]}  dxe4 {[%clk 0:02:58]} 4. Nxe4 {[%clk 0:03:01]}  Nf6 {[%clk 0:02:58]} 5. Nxf6+ {[%clk 0:03:01]}  exf6 {[%clk 0:02:59]} 6. c3 {[%clk 0:02:59]}  g6 {[%clk 0:02:59]} 7. Bd3 {[%clk 0:02:59]}  Bg7 {[%clk 0:03:00]} 8. Ne2 {[%clk 0:02:56]}  O-O {[%clk 0:03:00]} 9. O-O {[%clk 0:02:57]}  Re8 {[%clk 0:03:01]} 10. Bf4 {[%clk 0:02:53]}  Nd7 {[%clk 0:03:01]} 11. h3 {[%clk 0:02:52]}  Nb6 {[%clk 0:02:57]} 12. Re1 {[%clk 0:02:51]}  Be6 {[%clk 0:02:48]} 13. Qc2 {[%clk 0:02:50]}  a5 {[%clk 0:02:39]} 14. c4 {[%clk 0:02:46]}  f5 {[%clk 0:02:33]} 15. Rad1 {[%clk 0:02:42]}  a4 {[%clk 0:02:29]} 16. Be3 {[%clk 0:02:29]}  Bd7 {[%clk 0:02:19]} 17. b3 {[%clk 0:02:13]}  Nc8 {[%clk 0:02:14]} 18. Nc3 {[%clk 0:02:07]}  axb3 {[%clk 0:02:12]} 19. axb3 {[%clk 0:02:07]}  Qh4 {[%clk 0:02:05]} 20. Ne2 {[%clk 0:02:00]}  Nd6 {[%clk 0:01:57]} 21. Qc1 {[%clk 0:01:53]}  h6 {[%clk 0:01:51]} 22. Nf4 {[%clk 0:01:33]}  Ne4 {[%clk 0:01:36]} 23. Bf1 {[%clk 0:01:25]}  Ra2 {[%clk 0:01:22]} 24. Re2 {[%clk 0:01:23]}  Rxe2 {[%clk 0:01:16]} 25. Nxe2 {[%clk 0:01:23]}  g5 {[%clk 0:01:06]} 26. f3 {[%clk 0:01:23]}  f4 {[%clk 0:00:51]} 27. fxe4 {[%clk 0:01:16]}  fxe3 {[%clk 0:00:51]} 28. e5 {[%clk 0:01:16]}  Qf2+ {[%clk 0:00:51]} 29. Kh1 {[%clk 0:01:16]}  g4 {[%clk 0:00:48]} 30. Rd3 {[%clk 0:01:05]}  h5 {[%clk 0:00:39]} 31. Nc3 {[%clk 0:00:29]}  Bf5 {[%clk 0:00:25]} 32. Rd1 {[%clk 0:00:16]}  Bh6 {[%clk 0:00:25]} 33. Be2 {[%clk 0:00:10]}  gxh3 {[%clk 0:00:25]} 34. Rg1 {[%clk 0:00:11]}  Kh8 {[%clk 0:00:19]} 35. gxh3 {[%clk 0:00:10]}  Bxh3 {[%clk 0:00:18]} 36. Qe1 {[%clk 0:00:08]}  Bf4 {[%clk 0:00:18]} 37. Qxf2 {[%clk 0:00:07]}  exf2 {[%clk 0:00:19]} 38. Rd1 {[%clk 0:00:07]}  Rg8 {[%clk 0:00:18]} 39. Ne4 {[%clk 0:00:07]}  Bg2# {[%clk 0:00:18]} 0-1


[Site "https://www.chess.com"]

[Event "Titled Tuesday Blitz March 28 Early 2023"]
[White "Baches Garcia, Guillermo"]
[Black "Hamitevici, Vladimir"]
[WhiteFideId "2209764"]
[BlackFideId "13902393"]
[WhiteElo "2458"]
[BlackElo "2401"]
[Result "0-1"]
[Round "03"]
[TimeControl "180+2"]
[Date "2023.03.28"]
[WhiteClock "0:00:32"]
[BlackClock "0:01:24"]

1. e4 {[%clk 0:02:56]}  d6 {[%clk 0:02:58]} 2. d4 {[%clk 0:02:56]}  Nf6 {[%clk 0:02:56]} 3. Nc3 {[%clk 0:02:55]}  e5 {[%clk 0:02:57]} 4. Nf3 {[%clk 0:02:55]}  Nbd7 {[%clk 0:02:57]} 5. Rg1 {[%clk 0:02:54]}  h5 {[%clk 0:02:50]} 6. h3 {[%clk 0:02:49]}  g6 {[%clk 0:02:48]} 7. g4 {[%clk 0:02:45]}  hxg4 {[%clk 0:02:49]} 8. hxg4 {[%clk 0:02:45]}  Bg7 {[%clk 0:02:48]} 9. Be3 {[%clk 0:02:42]}  c6 {[%clk 0:02:45]} 10. a4 {[%clk 0:02:27]}  Qa5 {[%clk 0:02:25]} 11. Qd2 {[%clk 0:02:13]}  exd4 {[%clk 0:02:25]} 12. Bxd4 {[%clk 0:02:02]}  Ne5 {[%clk 0:02:25]} 13. Nxe5 {[%clk 0:01:36]}  dxe5 {[%clk 0:02:26]} 14. Be3 {[%clk 0:01:37]}  Bxg4 {[%clk 0:02:14]} 15. Bg5 {[%clk 0:01:13]}  Rd8 {[%clk 0:02:11]} 16. Qe3 {[%clk 0:01:13]}  Bh5 {[%clk 0:01:59]} 17. Bc4 {[%clk 0:01:04]}  Rd4 {[%clk 0:01:56]} 18. Bd3 {[%clk 0:00:47]}  Qb4 {[%clk 0:01:43]} 19. f4 {[%clk 0:00:32]}  Ng4 {[%clk 0:01:24]} 0-1


[Site "https://www.chess.com"]

[Event "Titled Tuesday Blitz March 28 Early 2023"]
[White "Darini, Pouria"]
[Black "Miszler, Levente"]
[WhiteFideId "12502200"]
[BlackFideId "763276"]
[WhiteElo "2482"]
[BlackElo "2176"]
[Result "1-0"]
[Round "03"]
[TimeControl "180+2"]
[Date "2023.03.28"]
[WhiteClock "0:01:38"]
[BlackClock "0:00:48"]

1. c4 {[%clk 0:03:00]}  c5 {[%clk 0:02:56]} 2. Nc3 {[%clk 0:03:00]}  Nc6 {[%clk 0:02:57]} 3. g3 {[%clk 0:03:01]}  g6 {[%clk 0:02:57]} 4. Bg2 {[%clk 0:03:01]}  Bg7 {[%clk 0:02:58]} 5. Nf3 {[%clk 0:03:01]}  e6 {[%clk 0:02:57]} 6. O-O {[%clk 0:03:00]}  Nge7 {[%clk 0:02:56]} 7. d3 {[%clk 0:03:00]}  d5 {[%clk 0:02:54]} 8. Bf4 {[%clk 0:02:53]}  O-O {[%clk 0:02:45]} 9. Qc1 {[%clk 0:02:53]}  Nf5 {[%clk 0:02:39]} 10. cxd5 {[%clk 0:02:37]}  exd5 {[%clk 0:02:40]} 11. e4 {[%clk 0:02:28]}  dxe4 {[%clk 0:02:23]} 12. dxe4 {[%clk 0:02:28]}  Nfd4 {[%clk 0:02:23]} 13. Nxd4 {[%clk 0:02:29]}  cxd4 {[%clk 0:02:23]} 14. Nd5 {[%clk 0:02:29]}  Bg4 {[%clk 0:02:03]} 15. f3 {[%clk 0:02:12]}  Bd7 {[%clk 0:01:59]} 16. Bc7 {[%clk 0:02:06]}  Qe8 {[%clk 0:01:55]} 17. Bd6 {[%clk 0:02:04]}  Rc8 {[%clk 0:01:51]} 18. Qf4 {[%clk 0:01:50]}  Be5 {[%clk 0:01:03]} 19. Bxe5 {[%clk 0:01:50]}  Qxe5 {[%clk 0:01:01]} 20. Nf6+ {[%clk 0:01:50]}  Kg7 {[%clk 0:00:58]} 21. Nxd7 {[%clk 0:01:51]}  Qxf4 {[%clk 0:00:58]} 22. gxf4 {[%clk 0:01:52]}  Rfd8 {[%clk 0:00:56]} 23. Bh3 {[%clk 0:01:49]}  d3 {[%clk 0:00:50]} 24. Rad1 {[%clk 0:01:43]}  Nb4 {[%clk 0:00:48]} 25. a3 {[%clk 0:01:38]} 1-0


[Site "https://www.chess.com"]

[Event "Titled Tuesday Blitz March 28 Early 2023"]
[White "Martinez Ramirez, Lennis"]
[Black "ElDivis"]
[WhiteFideId "3509079"]
[WhiteElo "2439"]
[BlackElo "2451"]
[Result "1-0"]
[Round "03"]
[TimeControl "180+2"]
[Date "2023.03.28"]
[WhiteClock "0:00:36"]
[BlackClock "0:00:09"]

1. c4 {[%clk 0:03:00]}  Nf6 {[%clk 0:02:58]} 2. d4 {[%clk 0:02:57]}  g6 {[%clk 0:02:58]} 3. Nc3 {[%clk 0:02:56]}  Bg7 {[%clk 0:02:58]} 4. e4 {[%clk 0:02:56]}  d6 {[%clk 0:02:58]} 5. Nf3 {[%clk 0:02:56]}  O-O {[%clk 0:02:58]} 6. h3 {[%clk 0:02:56]}  e5 {[%clk 0:02:57]} 7. d5 {[%clk 0:02:56]}  a5 {[%clk 0:02:55]} 8. Bd3 {[%clk 0:02:55]}  Na6 {[%clk 0:02:54]} 9. g4 {[%clk 0:02:55]}  Nd7 {[%clk 0:02:54]} 10. Be3 {[%clk 0:02:55]}  Ndc5 {[%clk 0:02:54]} 11. Bb1 {[%clk 0:02:53]}  c6 {[%clk 0:02:50]} 12. Rg1 {[%clk 0:02:52]}  cxd5 {[%clk 0:02:49]} 13. cxd5 {[%clk 0:02:51]}  Kh8 {[%clk 0:02:45]} 14. h4 {[%clk 0:02:50]}  f5 {[%clk 0:02:23]} 15. gxf5 {[%clk 0:02:46]}  gxf5 {[%clk 0:02:24]} 16. exf5 {[%clk 0:02:46]}  e4 {[%clk 0:02:24]} 17. Ng5 {[%clk 0:02:45]}  Bxf5 {[%clk 0:02:24]} 18. Bc2 {[%clk 0:02:33]}  Nb4 {[%clk 0:02:13]} 19. Bxc5 {[%clk 0:02:32]}  dxc5 {[%clk 0:02:14]} 20. Bxe4 {[%clk 0:02:32]}  Bxe4 {[%clk 0:02:07]} 21. Ncxe4 {[%clk 0:02:18]}  Qxd5 {[%clk 0:01:51]} 22. Qxd5 {[%clk 0:02:17]}  Nxd5 {[%clk 0:01:50]} 23. O-O-O {[%clk 0:02:17]}  Nf4 {[%clk 0:01:41]} 24. Rg4 {[%clk 0:02:03]}  h5 {[%clk 0:01:32]} 25. Rxf4 {[%clk 0:01:48]}  Rxf4 {[%clk 0:01:33]} 26. Rd7 {[%clk 0:01:48]}  Re8 {[%clk 0:01:28]} 27. f3 {[%clk 0:01:48]}  Bh6 {[%clk 0:01:08]} 28. Rh7+ {[%clk 0:01:47]}  Kg8 {[%clk 0:01:06]} 29. Rxh6 {[%clk 0:01:47]}  Kg7 {[%clk 0:01:02]} 30. Rh7+ {[%clk 0:01:36]}  Kg6 {[%clk 0:01:00]} 31. Rxb7 {[%clk 0:01:36]}  Rxh4 {[%clk 0:01:00]} 32. Rb6+ {[%clk 0:01:33]}  Kf5 {[%clk 0:00:56]} 33. Nd6+ {[%clk 0:01:31]}  Kxg5 {[%clk 0:00:55]} 34. Nxe8 {[%clk 0:01:32]}  Rh1+ {[%clk 0:00:50]} 35. Kd2 {[%clk 0:01:31]}  h4 {[%clk 0:00:51]} 36. Ke3 {[%clk 0:01:30]}  Re1+ {[%clk 0:00:41]} 37. Kf2 {[%clk 0:01:30]}  Rxe8 {[%clk 0:00:41]} 38. Rb5 {[%clk 0:01:30]}  Re5 {[%clk 0:00:33]} 39. Rxa5 {[%clk 0:01:30]}  Rd5 {[%clk 0:00:33]} 40. b4 {[%clk 0:01:17]}  Kf4 {[%clk 0:00:29]} 41. bxc5 {[%clk 0:01:01]}  Rd2+ {[%clk 0:00:30]} 42. Ke1 {[%clk 0:00:59]}  Rc2 {[%clk 0:00:30]} 43. Ra4+ {[%clk 0:00:52]}  Kg3 {[%clk 0:00:30]} 44. Rg4+ {[%clk 0:00:50]}  Kxf3 {[%clk 0:00:25]} 45. Rxh4 {[%clk 0:00:50]}  Rxc5 {[%clk 0:00:25]} 46. Kd2 {[%clk 0:00:48]}  Kg3 {[%clk 0:00:18]} 47. Rd4 {[%clk 0:00:48]}  Kf3 {[%clk 0:00:18]} 48. a4 {[%clk 0:00:48]}  Kf2 {[%clk 0:00:16]} 49. Rf4+ {[%clk 0:00:47]}  Kg3 {[%clk 0:00:16]} 50. Rb4 {[%clk 0:00:45]}  Kf3 {[%clk 0:00:16]} 51. Kd3 {[%clk 0:00:46]}  Kf2 {[%clk 0:00:15]} 52. Rb5 {[%clk 0:00:45]}  Rc1 {[%clk 0:00:14]} 53. a5 {[%clk 0:00:45]}  Ra1 {[%clk 0:00:15]} 54. Re5 {[%clk 0:00:44]}  Kf3 {[%clk 0:00:15]} 55. Kc4 {[%clk 0:00:44]}  Kf4 {[%clk 0:00:15]} 56. Rh5 {[%clk 0:00:44]}  Ke4 {[%clk 0:00:15]} 57. Kb5 {[%clk 0:00:43]}  Rb1+ {[%clk 0:00:15]} 58. Kc6 {[%clk 0:00:43]}  Rc1+ {[%clk 0:00:12]} 59. Rc5 {[%clk 0:00:43]}  Ra1 {[%clk 0:00:11]} 60. Kb6 {[%clk 0:00:43]}  Kd4 {[%clk 0:00:12]} 61. Rb5 {[%clk 0:00:40]}  Kc4 {[%clk 0:00:10]} 62. a6 {[%clk 0:00:40]}  Rh1 {[%clk 0:00:11]} 63. Rc5+ {[%clk 0:00:39]}  Kb4 {[%clk 0:00:11]} 64. a7 {[%clk 0:00:38]}  Ra1 {[%clk 0:00:09]} 65. Rc8 {[%clk 0:00:36]} 1-0


[Site "https://www.chess.com"]

[Event "Titled Tuesday Blitz March 28 Early 2023"]
[White "Tregubov, Pavel V."]
[Black "Cheng, Xiao"]
[WhiteFideId "4115341"]
[BlackFideId "2022915"]
[WhiteElo "2425"]
[BlackElo "2450"]
[Result "1-0"]
[Round "03"]
[TimeControl "180+2"]
[Date "2023.03.28"]
[WhiteClock "0:00:14"]
[BlackClock "0:00:18"]

1. e4 {[%clk 0:02:51]}  c5 {[%clk 0:02:57]} 2. Nf3 {[%clk 0:02:52]}  e6 {[%clk 0:02:57]} 3. c3 {[%clk 0:02:51]}  Nf6 {[%clk 0:02:54]} 4. e5 {[%clk 0:02:51]}  Nd5 {[%clk 0:02:54]} 5. d4 {[%clk 0:02:52]}  cxd4 {[%clk 0:02:53]} 6. cxd4 {[%clk 0:02:52]}  d6 {[%clk 0:02:53]} 7. Bc4 {[%clk 0:02:52]}  Nc6 {[%clk 0:02:52]} 8. O-O {[%clk 0:02:52]}  Be7 {[%clk 0:02:52]} 9. Qe2 {[%clk 0:02:53]}  O-O {[%clk 0:02:52]} 10. Rd1 {[%clk 0:02:53]}  Nb6 {[%clk 0:02:45]} 11. Bb3 {[%clk 0:02:50]}  Qc7 {[%clk 0:02:43]} 12. Nc3 {[%clk 0:02:50]}  a6 {[%clk 0:02:42]} 13. Bc2 {[%clk 0:02:42]}  Nd5 {[%clk 0:02:11]} 14. Qe4 {[%clk 0:02:37]}  f5 {[%clk 0:02:08]} 15. exf6 {[%clk 0:02:37]}  Nxf6 {[%clk 0:02:08]} 16. Qe2 {[%clk 0:02:29]}  Nb4 {[%clk 0:02:07]} 17. Bb3 {[%clk 0:02:26]}  Nbd5 {[%clk 0:02:05]} 18. Bg5 {[%clk 0:02:21]}  Nxc3 {[%clk 0:01:55]} 19. bxc3 {[%clk 0:02:20]}  d5 {[%clk 0:01:54]} 20. c4 {[%clk 0:02:14]}  Kh8 {[%clk 0:01:51]} 21. Rac1 {[%clk 0:02:10]}  dxc4 {[%clk 0:01:46]} 22. Bxc4 {[%clk 0:02:08]}  Qd6 {[%clk 0:01:45]} 23. Re1 {[%clk 0:01:57]}  h6 {[%clk 0:01:26]} 24. Bh4 {[%clk 0:01:55]}  Nd5 {[%clk 0:01:16]} 25. Bxe7 {[%clk 0:01:54]}  Nxe7 {[%clk 0:01:17]} 26. Bxe6 {[%clk 0:01:47]}  Nf5 {[%clk 0:01:12]} 27. d5 {[%clk 0:01:25]}  Bd7 {[%clk 0:01:09]} 28. Ne5 {[%clk 0:01:18]}  Bxe6 {[%clk 0:01:04]} 29. Ng6+ {[%clk 0:01:16]}  Kg8 {[%clk 0:01:04]} 30. dxe6 {[%clk 0:01:03]}  Rf6 {[%clk 0:00:59]} 31. Rcd1 {[%clk 0:00:59]}  Qc6 {[%clk 0:00:53]} 32. Ne5 {[%clk 0:00:41]}  Qxe6 {[%clk 0:00:52]} 33. Nd7 {[%clk 0:00:41]}  Qf7 {[%clk 0:00:45]} 34. Nxf6+ {[%clk 0:00:41]}  Qxf6 {[%clk 0:00:46]} 35. Qe6+ {[%clk 0:00:41]}  Qxe6 {[%clk 0:00:46]} 36. Rxe6 {[%clk 0:00:41]}  Rc8 {[%clk 0:00:45]} 37. g4 {[%clk 0:00:39]}  Nh4 {[%clk 0:00:44]} 38. Re7 {[%clk 0:00:36]}  b5 {[%clk 0:00:35]} 39. h3 {[%clk 0:00:37]}  Ng6 {[%clk 0:00:31]} 40. Ra7 {[%clk 0:00:35]}  Nf4 {[%clk 0:00:25]} 41. Kh2 {[%clk 0:00:35]}  Rc2 {[%clk 0:00:24]} 42. Rdd7 {[%clk 0:00:33]}  Ne6 {[%clk 0:00:22]} 43. Rxa6 {[%clk 0:00:30]}  Rxf2+ {[%clk 0:00:22]} 44. Kg3 {[%clk 0:00:29]}  Rf6 {[%clk 0:00:22]} 45. Re7 {[%clk 0:00:23]}  Nd4 {[%clk 0:00:19]} 46. Rxf6 {[%clk 0:00:23]}  gxf6 {[%clk 0:00:19]} 47. Kf4 {[%clk 0:00:22]}  Kf8 {[%clk 0:00:18]} 48. Rh7 {[%clk 0:00:20]}  b4 {[%clk 0:00:17]} 49. Rb7 {[%clk 0:00:19]}  Nc2 {[%clk 0:00:12]} 50. Kf5 {[%clk 0:00:19]}  Ne3+ {[%clk 0:00:12]} 51. Kxf6 {[%clk 0:00:18]}  Ke8 {[%clk 0:00:13]} 52. Re7+ {[%clk 0:00:16]}  Kd8 {[%clk 0:00:12]} 53. Rxe3 {[%clk 0:00:16]}  Kd7 {[%clk 0:00:13]} 54. Kg6 {[%clk 0:00:15]}  Kd6 {[%clk 0:00:13]} 55. Kxh6 {[%clk 0:00:15]}  Kc5 {[%clk 0:00:14]} 56. g5 {[%clk 0:00:16]}  Kd4 {[%clk 0:00:15]} 57. Re8 {[%clk 0:00:15]}  Kc3 {[%clk 0:00:15]} 58. g6 {[%clk 0:00:16]}  Kb2 {[%clk 0:00:16]} 59. g7 {[%clk 0:00:16]}  Kxa2 {[%clk 0:00:17]} 60. g8=Q+ {[%clk 0:00:16]}  b3 {[%clk 0:00:18]} 61. Rb8 {[%clk 0:00:15]}  Ka1 {[%clk 0:00:17]} 62. Rxb3 {[%clk 0:00:14]}  Ka2 {[%clk 0:00:17]} 63. Rb4+ {[%clk 0:00:14]}  Ka3 {[%clk 0:00:18]} 64. Qb3# {[%clk 0:00:14]} 1-0


[Site "https://www.chess.com"]

[Event "Titled Tuesday Blitz March 28 Early 2023"]
[White "Olsson, William"]
[Black "Kucuksari, Kaan"]
[WhiteFideId "1741721"]
[BlackFideId "6380166"]
[WhiteElo "2197"]
[BlackElo "2364"]
[Result "1/2-1/2"]
[Round "03"]
[TimeControl "180+2"]
[Date "2023.03.28"]
[WhiteClock "0:00:02"]
[BlackClock "0:00:48"]

1. c4 {[%clk 0:03:00]}  Nf6 {[%clk 0:02:57]} 2. g3 {[%clk 0:03:00]}  e5 {[%clk 0:02:53]} 3. Bg2 {[%clk 0:03:01]}  Nc6 {[%clk 0:02:53]} 4. Nc3 {[%clk 0:03:00]}  Bc5 {[%clk 0:02:53]} 5. Nf3 {[%clk 0:02:57]}  O-O {[%clk 0:02:53]} 6. O-O {[%clk 0:02:57]}  d6 {[%clk 0:02:52]} 7. a3 {[%clk 0:02:58]}  a5 {[%clk 0:02:52]} 8. Rb1 {[%clk 0:02:57]}  Bf5 {[%clk 0:02:52]} 9. d3 {[%clk 0:02:57]}  h6 {[%clk 0:02:52]} 10. Bd2 {[%clk 0:02:54]}  Re8 {[%clk 0:02:42]} 11. e4 {[%clk 0:02:53]}  Bg4 {[%clk 0:02:39]} 12. h3 {[%clk 0:02:50]}  Be6 {[%clk 0:02:35]} 13. Nd5 {[%clk 0:02:49]}  Bxd5 {[%clk 0:02:34]} 14. cxd5 {[%clk 0:02:48]}  Nd4 {[%clk 0:02:33]} 15. b4 {[%clk 0:02:14]}  axb4 {[%clk 0:02:30]} 16. axb4 {[%clk 0:02:01]}  Bb6 {[%clk 0:02:29]} 17. Nxd4 {[%clk 0:01:55]}  Bxd4 {[%clk 0:02:29]} 18. Qb3 {[%clk 0:01:45]}  Nd7 {[%clk 0:02:26]} 19. Bc3 {[%clk 0:01:45]}  Bb6 {[%clk 0:02:19]} 20. Rbd1 {[%clk 0:01:40]}  Qf6 {[%clk 0:02:18]} 21. Qb2 {[%clk 0:01:37]}  Ra4 {[%clk 0:02:15]} 22. Kh2 {[%clk 0:01:31]}  Rea8 {[%clk 0:02:15]} 23. f4 {[%clk 0:01:23]}  Qe7 {[%clk 0:02:12]} 24. fxe5 {[%clk 0:01:10]}  Nxe5 {[%clk 0:02:13]} 25. d4 {[%clk 0:00:55]}  Nc4 {[%clk 0:02:07]} 26. Qe2 {[%clk 0:00:55]}  Na3 {[%clk 0:01:58]} 27. e5 {[%clk 0:00:50]}  Qe8 {[%clk 0:01:58]} 28. e6 {[%clk 0:00:48]}  f6 {[%clk 0:01:56]} 29. e7 {[%clk 0:00:43]}  Nb5 {[%clk 0:01:52]} 30. Bb2 {[%clk 0:00:40]}  Ra2 {[%clk 0:01:49]} 31. Rd2 {[%clk 0:00:40]}  Rxb2 {[%clk 0:01:30]} 32. Rxb2 {[%clk 0:00:40]}  Bxd4 {[%clk 0:01:29]} 33. Qe6+ {[%clk 0:00:33]}  Kh8 {[%clk 0:01:28]} 34. Re2 {[%clk 0:00:28]}  Be5 {[%clk 0:01:28]} 35. Re4 {[%clk 0:00:26]}  Ra3 {[%clk 0:01:03]} 36. Rxe5 {[%clk 0:00:13]}  dxe5 {[%clk 0:00:59]} 37. Rxf6 {[%clk 0:00:13]}  gxf6 {[%clk 0:00:54]} 38. Qxf6+ {[%clk 0:00:13]}  Kg8 {[%clk 0:00:52]} 39. Qe6+ {[%clk 0:00:04]}  Kg7 {[%clk 0:00:53]} 40. Qxe5+ {[%clk 0:00:05]}  Kf7 {[%clk 0:00:50]} 41. Qe6+ {[%clk 0:00:04]}  Kg7 {[%clk 0:00:51]} 42. Qe5+ {[%clk 0:00:04]}  Kf7 {[%clk 0:00:47]} 43. Qe6+ {[%clk 0:00:02]}  Kg7 {[%clk 0:00:48]} 44. Qe5+ {[%clk 0:00:02]} 1/2-1/2


[Site "https://www.chess.com"]